[Event "Live Chess"]
[Site "Chess.com"]
[Date "2023.05.21"]
[Round "-"]
[White "SmoothBaron"]
[Black "lateforthesky"]
[Result "1-0"]
[WhiteElo "2312"]
[BlackElo "2106"]
[TimeControl "300"]
[EndTime "3:20:43 PDT"]
[Termination "SmoothBaron won by resignation"]

1. e4 {[%clk 0:04:57.3]} 1... c5 {[%clk 0:04:57.4]} 2. f4 {[%clk 0:04:55.6]}
2... d5 {[%clk 0:04:55.7]} 3. exd5 {[%clk 0:04:54.4]} 3... Nf6 {[%clk
0:04:54.1]} 4. Nc3 {[%clk 0:04:53.5]} 4... Nxd5 {[%clk 0:04:51.1]} 5. Bb5+
{[%clk 0:04:52.3]} 5... Bd7 {[%clk 0:04:46.9]} 6. Qf3 {[%clk 0:04:50.9]} 6...
Bxb5 {[%clk 0:04:36]} 7. Nxb5 {[%clk 0:04:49.7]} 7... Na6 {[%clk 0:04:26.5]} 8.
a3 {[%clk 0:04:44.4]} 8... Qd7 {[%clk 0:04:19.4]} 9. c4 {[%clk 0:04:26.8]} 9...
Nf6 {[%clk 0:04:05.1]} 10. Ne2 {[%clk 0:04:18.9]} 10... e6 {[%clk 0:04:02.3]}
11. b3 {[%clk 0:04:10.3]} 11... Rd8 {[%clk 0:03:52.9]} 12. O-O {[%clk
0:04:06.2]} 12... Be7 {[%clk 0:03:50.7]} 13. Rd1 {[%clk 0:03:54.3]} 13... O-O
{[%clk 0:03:48.4]} 14. d3 {[%clk 0:03:52.7]} 14... Nc7 {[%clk 0:03:30.6]} 15.
Qxb7 {[%clk 0:03:39.5]} 15... Nxb5 {[%clk 0:03:28.8]} 16. Qxb5 {[%clk
0:03:38.1]} 16... Qxb5 {[%clk 0:03:05.7]} 17. cxb5 {[%clk 0:03:36.8]} 17... Rb8
{[%clk 0:03:03.5]} 18. a4 {[%clk 0:03:33.7]} 18... a6 {[%clk 0:03:01.5]} 19. Bb2
{[%clk 0:03:26.6]} 19... axb5 {[%clk 0:02:59]} 20. a5 {[%clk 0:03:25.3]} 20...
Nd5 {[%clk 0:02:54.4]} 21. d4 {[%clk 0:03:00.7]} 21... Ra8 {[%clk 0:02:41.2]}
22. Rdc1 {[%clk 0:02:54.7]} 22... Rfc8 {[%clk 0:02:37.2]} 23. g3 {[%clk
0:02:31.3]} 23... c4 {[%clk 0:02:27.7]} 24. bxc4 {[%clk 0:02:23.5]} 24... bxc4
{[%clk 0:02:26.4]} 25. Ra4 {[%clk 0:02:17.1]} 25... Rcb8 {[%clk 0:02:08.5]} 26.
Bc3 {[%clk 0:02:04.8]} 26... Nb6 {[%clk 0:01:49.9]} 27. Ra2 {[%clk 0:01:56.1]}
27... Nd5 {[%clk 0:01:48.8]} 28. Kf2 {[%clk 0:01:51.8]} 28... Rb3 {[%clk
0:01:47.4]} 29. Bd2 {[%clk 0:01:45.6]} 29... Rb5 {[%clk 0:01:32.5]} 30. Rxc4
{[%clk 0:01:43.6]} 30... h5 {[%clk 0:01:28.1]} 31. a6 {[%clk 0:01:39.1]} 31...
Rb6 {[%clk 0:01:24.9]} 32. a7 {[%clk 0:01:33.3]} 32... Rb7 {[%clk 0:01:23.5]}
33. Rca4 {[%clk 0:01:32.2]} 33... Bd6 {[%clk 0:01:08.5]} 34. Nc3 {[%clk
0:01:29.4]} 34... Nc7 {[%clk 0:00:43.4]} 35. Ne4 {[%clk 0:01:25.2]} 35... Be7
{[%clk 0:00:34.1]} 36. Nc5 {[%clk 0:01:10]} 36... Bxc5 {[%clk 0:00:32]} 37. dxc5
{[%clk 0:01:09.9]} 37... Nb5 {[%clk 0:00:27.7]} 38. Rb2 {[%clk 0:01:02.9]} 38...
Rbxa7 {[%clk 0:00:23]} 39. Rxa7 {[%clk 0:01:00.1]} 39... Nxa7 {[%clk 0:00:20.9]}
40. Ra2 {[%clk 0:00:58.9]} 40... Kf8 {[%clk 0:00:19.1]} 41. c6 {[%clk
0:00:54.6]} 41... Ke8 {[%clk 0:00:17.1]} 42. Be3 {[%clk 0:00:52.6]} 1-0

[Event "Live Chess"]
[Site "Chess.com"]
[Date "2023.05.21"]
[Round "-"]
[White "peter-785"]
[Black "DoYouLikeCurry"]
[Result "0-1"]
[WhiteElo "1183"]
[BlackElo "1405"]
[TimeControl "300"]
[EndTime "3:20:45 PDT"]
[Termination "DoYouLikeCurry won by checkmate"]

1. e4 {[%clk 0:04:57.8]} 1... c6 {[%clk 0:04:58.5]} 2. Nf3 {[%clk 0:04:57.4]}
2... d5 {[%clk 0:04:56.8]} 3. exd5 {[%clk 0:04:55]} 3... cxd5 {[%clk 0:04:56.7]}
4. d4 {[%clk 0:04:53.9]} 4... g6 {[%clk 0:04:54.4]} 5. Be2 {[%clk 0:04:51.9]}
5... Bg7 {[%clk 0:04:53.4]} 6. c3 {[%clk 0:04:51.4]} 6... Nf6 {[%clk 0:04:51.4]}
7. O-O {[%clk 0:04:51]} 7... O-O {[%clk 0:04:50.5]} 8. h3 {[%clk 0:04:50.4]}
8... Nc6 {[%clk 0:04:47.8]} 9. Be3 {[%clk 0:04:48.5]} 9... Qb6 {[%clk
0:04:43.8]} 10. Qd2 {[%clk 0:04:47.2]} 10... e6 {[%clk 0:04:42.3]} 11. Re1
{[%clk 0:04:31.8]} 11... Bd7 {[%clk 0:04:39.9]} 12. Bf1 {[%clk 0:04:29.7]} 12...
Rac8 {[%clk 0:04:25.5]} 13. Na3 {[%clk 0:04:25.8]} 13... Rfe8 {[%clk 0:03:50.8]}
14. c4 {[%clk 0:04:24.7]} 14... Ne4 {[%clk 0:03:43.8]} 15. Qe2 {[%clk
0:04:22.5]} 15... Nxd4 {[%clk 0:03:38.7]} 16. Nxd4 {[%clk 0:04:18.7]} 16... Bxd4
{[%clk 0:03:35.5]} 17. Bxd4 {[%clk 0:04:11.3]} 17... Qxd4 {[%clk 0:03:33.7]} 18.
cxd5 {[%clk 0:04:08]} 18... exd5 {[%clk 0:03:29.1]} 19. Red1 {[%clk 0:04:04.5]}
19... Qb6 {[%clk 0:03:24.1]} 20. Rxd5 {[%clk 0:03:43.7]} 20... Nc3 {[%clk
0:03:01.6]} 21. Qd3 {[%clk 0:03:29.4]} 21... Nxd5 {[%clk 0:02:58.6]} 22. Qxd5
{[%clk 0:03:28.9]} 22... Qxb2 {[%clk 0:02:55.6]} 23. Nc4 {[%clk 0:03:24.7]}
23... Qxa1 {[%clk 0:02:51.8]} 24. Nd6 {[%clk 0:03:23.1]} 24... Rc1 {[%clk
0:02:44.7]} 25. Qxf7+ {[%clk 0:03:21.2]} 25... Kh8 {[%clk 0:02:40.8]} 26. Qxd7
{[%clk 0:02:46]} 26... Rxf1+ {[%clk 0:02:37.9]} 27. Kh2 {[%clk 0:02:45.2]} 27...
Qe5+ {[%clk 0:02:37.3]} 28. g3 {[%clk 0:02:43.7]} 28... Rxf2+ {[%clk 0:02:35.9]}
29. Kg1 {[%clk 0:02:40.4]} 29... Qe1# {[%clk 0:02:34.6]} 0-1

[Event "Live Chess"]
[Site "Chess.com"]
[Date "2023.05.21"]
[Round "-"]
[White "Greenbecker"]
[Black "EdenHazard8"]
[Result "0-1"]
[WhiteElo "1646"]
[BlackElo "1958"]
[TimeControl "300"]
[EndTime "3:20:49 PDT"]
[Termination "EdenHazard8 won by resignation"]

1. e4 {[%clk 0:04:57.9]} 1... c6 {[%clk 0:04:59.2]} 2. d4 {[%clk 0:04:56.5]}
2... d5 {[%clk 0:04:59.1]} 3. exd5 {[%clk 0:04:55.4]} 3... cxd5 {[%clk 0:04:59]}
4. Bd3 {[%clk 0:04:53]} 4... Nc6 {[%clk 0:04:58.9]} 5. c3 {[%clk 0:04:50.9]}
5... Qc7 {[%clk 0:04:58.8]} 6. h3 {[%clk 0:04:49.9]} 6... e6 {[%clk 0:04:57]} 7.
Nf3 {[%clk 0:04:49.1]} 7... Bd6 {[%clk 0:04:56.6]} 8. O-O {[%clk 0:04:48.1]}
8... Nge7 {[%clk 0:04:56.2]} 9. Bg5 {[%clk 0:04:46.8]} 9... f6 {[%clk
0:04:54.9]} 10. Bh4 {[%clk 0:04:45.4]} 10... g5 {[%clk 0:04:53.5]} 11. Bxg5
{[%clk 0:04:42]} 11... fxg5 {[%clk 0:04:52.6]} 12. Nxg5 {[%clk 0:04:40.6]} 12...
Rg8 {[%clk 0:04:51]} 13. Qh5+ {[%clk 0:04:37]} 13... Ng6 {[%clk 0:04:49]} 14.
Qxh7 {[%clk 0:04:33]} 14... Qxh7 {[%clk 0:04:47.8]} 15. Nxh7 {[%clk 0:04:30.1]}
15... Kf7 {[%clk 0:04:46.4]} 16. Ng5+ {[%clk 0:04:18.9]} 16... Kf6 {[%clk
0:04:44.8]} 17. Nf3 {[%clk 0:04:13.6]} 17... Nf4 {[%clk 0:04:43.3]} 18. Bb5
{[%clk 0:04:03.6]} 18... Rxg2+ {[%clk 0:04:41.3]} 19. Kh1 {[%clk 0:04:02.1]}
19... Rg7 {[%clk 0:04:37.3]} 20. Nbd2 {[%clk 0:03:58.2]} 20... Nxh3 {[%clk
0:04:35.3]} 21. Bxc6 {[%clk 0:03:45.7]} 21... bxc6 {[%clk 0:04:33.8]} 22. c4
{[%clk 0:03:42.8]} 22... Ba6 {[%clk 0:04:32.4]} 23. b3 {[%clk 0:03:41.1]} 23...
Rh8 {[%clk 0:04:30.8]} 24. Nh2 {[%clk 0:03:37.7]} 24... Ng5 {[%clk 0:04:26.8]}
0-1

[Event "Live Chess"]
[Site "Chess.com"]
[Date "2023.05.21"]
[Round "-"]
[White "TheSmoulderingMaster"]
[Black "Tiltador"]
[Result "1-0"]
[WhiteElo "1697"]
[BlackElo "845"]
[TimeControl "300"]
[EndTime "3:20:54 PDT"]
[Termination "TheSmoulderingMaster won by resignation"]

1. e4 {[%clk 0:04:58.8]} 1... d5 {[%clk 0:04:55.8]} 2. exd5 {[%clk 0:04:57.8]}
2... Qxd5 {[%clk 0:04:54.6]} 3. Nc3 {[%clk 0:04:57.2]} 3... Qe6+ {[%clk
0:04:53.4]} 4. Be2 {[%clk 0:04:55.9]} 4... Nc6 {[%clk 0:04:52.2]} 5. Nf3 {[%clk
0:04:55]} 5... Bd7 {[%clk 0:04:50.8]} 6. O-O {[%clk 0:04:54.1]} 6... O-O-O
{[%clk 0:04:49.1]} 7. d4 {[%clk 0:04:53.3]} 7... Nb4 {[%clk 0:04:43.6]} 8. a3
{[%clk 0:04:51.3]} 8... Na6 {[%clk 0:04:42]} 9. Ng5 {[%clk 0:04:46.5]} 9... Qf5
{[%clk 0:04:29.7]} 10. Bxa6 {[%clk 0:04:40.9]} 10... bxa6 {[%clk 0:04:26]} 11.
Qe2 {[%clk 0:04:37]} 11... Bb5 {[%clk 0:04:17.1]} 12. Nxb5 {[%clk 0:04:34.7]}
12... Qxb5 {[%clk 0:04:10.5]} 13. Qxb5 {[%clk 0:04:32.8]} 13... axb5 {[%clk
0:04:08.8]} 14. Nxf7 {[%clk 0:04:32.7]} 14... Rxd4 {[%clk 0:04:02.2]} 15. Nxh8
{[%clk 0:04:31.1]} 15... Nf6 {[%clk 0:03:59.3]} 16. Nf7 {[%clk 0:04:28.9]} 16...
Rc4 {[%clk 0:03:49.8]} 17. c3 {[%clk 0:04:26.9]} 17... e6 {[%clk 0:03:47.1]} 18.
Bg5 {[%clk 0:04:23.8]} 18... Bd6 {[%clk 0:03:43.7]} 19. Nxd6+ {[%clk 0:04:20.8]}
19... cxd6 {[%clk 0:03:42.6]} 20. Bxf6 {[%clk 0:04:20.4]} 20... gxf6 {[%clk
0:03:40.8]} 21. Rfe1 {[%clk 0:04:18.8]} 21... e5 {[%clk 0:03:39.7]} 22. g3
{[%clk 0:04:18.3]} 22... h5 {[%clk 0:03:37.2]} 23. Rad1 {[%clk 0:04:17.2]} 23...
Kd7 {[%clk 0:03:35.5]} 24. Rd5 {[%clk 0:04:15.9]} 24... a6 {[%clk 0:03:33.9]}
25. Red1 {[%clk 0:04:14.8]} 25... Re4 {[%clk 0:03:27.2]} 26. Rxd6+ {[%clk
0:04:13.3]} 26... Ke7 {[%clk 0:03:24]} 27. Rxa6 {[%clk 0:04:12.1]} 27... Re2
{[%clk 0:03:20.2]} 28. Rdd6 {[%clk 0:04:10.2]} 28... Rxb2 {[%clk 0:03:17.7]} 29.
Rdb6 {[%clk 0:04:09.2]} 29... Rb1+ {[%clk 0:03:15.9]} 30. Kg2 {[%clk 0:04:06.9]}
30... Kf7 {[%clk 0:03:08.3]} 31. Ra7+ {[%clk 0:04:05.8]} 31... Kg6 {[%clk
0:03:07]} 32. Raa6 {[%clk 0:04:04.5]} 32... Kf5 {[%clk 0:03:03.5]} 33. Rxf6+
{[%clk 0:04:03.2]} 33... Ke4 {[%clk 0:03:02.4]} 34. Rae6 {[%clk 0:03:59.6]}
34... Kd3 {[%clk 0:03:00.1]} 35. Rxe5 {[%clk 0:03:57.5]} 35... Kxc3 {[%clk
0:02:58.9]} 36. Rb6 {[%clk 0:03:54.4]} 36... b4 {[%clk 0:02:43.2]} 37. axb4
{[%clk 0:03:52]} 37... Rxb4 {[%clk 0:02:39.9]} 38. Re3+ {[%clk 0:03:51]} 38...
Kc4 {[%clk 0:02:38.2]} 39. Re4+ {[%clk 0:03:50]} 39... Kc5 {[%clk 0:02:35.9]}
40. Rexb4 {[%clk 0:03:48.8]} 1-0

[Event "Live Chess"]
[Site "Chess.com"]
[Date "2023.05.21"]
[Round "-"]
[White "Pandreq"]
[Black "Abde2012"]
[Result "1-0"]
[WhiteElo "1230"]
[BlackElo "744"]
[TimeControl "300"]
[EndTime "3:21:06 PDT"]
[Termination "Pandreq won by resignation"]

1. d4 {[%clk 0:04:58.2]} 1... c6 {[%clk 0:04:58.4]} 2. c4 {[%clk 0:04:56.8]}
2... d5 {[%clk 0:04:57.3]} 3. cxd5 {[%clk 0:04:55.7]} 3... cxd5 {[%clk
0:04:56.5]} 4. Nc3 {[%clk 0:04:55]} 4... Nf6 {[%clk 0:04:53.7]} 5. Bf4 {[%clk
0:04:54.2]} 5... Bf5 {[%clk 0:04:51.5]} 6. e3 {[%clk 0:04:53.2]} 6... Nbd7
{[%clk 0:04:49.4]} 7. Nf3 {[%clk 0:04:52.4]} 7... e6 {[%clk 0:04:48.1]} 8. Bb5
{[%clk 0:04:50.2]} 8... Qa5 {[%clk 0:04:43.5]} 9. O-O {[%clk 0:04:46.2]} 9... a6
{[%clk 0:04:41.9]} 10. Ba4 {[%clk 0:04:38.7]} 10... b5 {[%clk 0:04:39]} 11. Bb3
{[%clk 0:04:34]} 11... Bb4 {[%clk 0:04:32.8]} 12. Rc1 {[%clk 0:04:27.2]} 12...
Rc8 {[%clk 0:04:29]} 13. Ne2 {[%clk 0:04:13.9]} 13... Rxc1 {[%clk 0:04:24.3]}
14. Qxc1 {[%clk 0:04:13]} 14... Ne4 {[%clk 0:04:19.5]} 15. Qc8+ {[%clk
0:04:10.6]} 15... Qd8 {[%clk 0:04:15]} 16. Qxd8+ {[%clk 0:04:05.7]} 16... Kxd8
{[%clk 0:04:13.7]} 17. Rc1 {[%clk 0:03:52.9]} 17... Nd6 {[%clk 0:04:01.5]} 18.
Ne5 {[%clk 0:03:44]} 18... Nxe5 {[%clk 0:03:51.4]} 19. Bxe5 {[%clk 0:03:42.4]}
19... Bd2 {[%clk 0:03:44.1]} 20. Rc6 {[%clk 0:03:35.7]} 20... Nc8 {[%clk
0:03:39.7]} 21. Ng3 {[%clk 0:03:19.4]} 21... Be4 {[%clk 0:03:27.4]} 22. Nxe4
{[%clk 0:03:17.2]} 22... dxe4 {[%clk 0:03:18.2]} 23. Bxg7 {[%clk 0:03:16]} 23...
Rg8 {[%clk 0:03:16.1]} 24. Bf6+ {[%clk 0:03:15.2]} 24... Kd7 {[%clk 0:03:13.4]}
25. Rc5 {[%clk 0:03:11.1]} 25... Rg6 {[%clk 0:03:10.3]} 26. Be5 {[%clk
0:03:07.1]} 26... Rg5 {[%clk 0:03:00.2]} 27. Rc7+ {[%clk 0:03:04.9]} 27... Kd8
{[%clk 0:02:57.3]} 28. Rxf7 {[%clk 0:03:02.3]} 28... Bc1 {[%clk 0:02:50.5]} 29.
Bxe6 {[%clk 0:02:55.9]} 29... Rg8 {[%clk 0:02:40.8]} 30. Rxh7 {[%clk 0:02:44.7]}
30... Re8 {[%clk 0:02:31.9]} 31. Bf6+ {[%clk 0:02:39.6]} 31... Ne7 {[%clk
0:02:28.1]} 32. Bf5 {[%clk 0:02:19.3]} 32... Bxb2 {[%clk 0:02:16.2]} 33. Bxe4
{[%clk 0:02:15.1]} 33... Rf8 {[%clk 0:02:08]} 34. Bxe7+ {[%clk 0:02:12.8]} 34...
Ke8 {[%clk 0:02:04]} 35. Bxf8 {[%clk 0:02:11.9]} 35... Kxf8 {[%clk 0:02:03]} 36.
d5 {[%clk 0:02:05.6]} 36... Kg8 {[%clk 0:02:00.6]} 37. Ra7 {[%clk 0:02:03.9]}
37... Kf8 {[%clk 0:01:59.6]} 38. d6 {[%clk 0:02:00.4]} 1-0

[Event "Live Chess"]
[Site "Chess.com"]
[Date "2023.05.21"]
[Round "-"]
[White "LiamClery2020"]
[Black "Crowded_House"]
[Result "1/2-1/2"]
[WhiteElo "1994"]
[BlackElo "1641"]
[TimeControl "300"]
[EndTime "3:21:22 PDT"]
[Termination "Game drawn by repetition"]

1. e4 {[%clk 0:04:59.6]} 1... e6 {[%clk 0:04:57.9]} 2. d4 {[%clk 0:04:55.4]}
2... d5 {[%clk 0:04:54.9]} 3. Nd2 {[%clk 0:04:53.2]} 3... c5 {[%clk 0:04:50.9]}
4. c3 {[%clk 0:04:51.2]} 4... cxd4 {[%clk 0:04:47.7]} 5. cxd4 {[%clk 0:04:48.6]}
5... dxe4 {[%clk 0:04:41.6]} 6. Nxe4 {[%clk 0:04:46.2]} 6... Nf6 {[%clk
0:04:38]} 7. Nxf6+ {[%clk 0:04:42.6]} 7... Qxf6 {[%clk 0:04:36.9]} 8. Nf3 {[%clk
0:04:39.9]} 8... Bb4+ {[%clk 0:04:32.8]} 9. Bd2 {[%clk 0:04:37.9]} 9... Bxd2+
{[%clk 0:04:31.2]} 10. Qxd2 {[%clk 0:04:37.8]} 10... O-O {[%clk 0:04:29.3]} 11.
Bd3 {[%clk 0:04:36.3]} 11... Nc6 {[%clk 0:04:17.8]} 12. Be4 {[%clk 0:04:32.5]}
12... Bd7 {[%clk 0:04:12.2]} 13. O-O {[%clk 0:04:30]} 13... Rfd8 {[%clk
0:04:04]} 14. Rac1 {[%clk 0:04:23.7]} 14... Be8 {[%clk 0:04:00.5]} 15. Qe3
{[%clk 0:04:18.4]} 15... Nxd4 {[%clk 0:03:44.3]} 16. Nxd4 {[%clk 0:04:14.4]}
16... Qxd4 {[%clk 0:03:42.8]} 17. Bxb7 {[%clk 0:04:07.9]} 17... Qxe3 {[%clk
0:03:39.2]} 18. fxe3 {[%clk 0:04:06.4]} 18... Rab8 {[%clk 0:03:34.4]} 19. Rc7
{[%clk 0:04:02.4]} 19... Rd7 {[%clk 0:03:24.8]} 20. Rfc1 {[%clk 0:03:54.8]}
20... Rxb7 {[%clk 0:03:13.7]} 21. Rc8 {[%clk 0:03:48.1]} 21... Kf8 {[%clk
0:03:02.2]} 22. Ra8 {[%clk 0:03:46.6]} 22... Rxb2 {[%clk 0:02:56.1]} 23. h3
{[%clk 0:03:44.7]} 23... Rxa2 {[%clk 0:02:50.8]} 24. Rcc8 {[%clk 0:03:40.5]}
24... Re7 {[%clk 0:02:48.6]} 25. Rc6 {[%clk 0:03:36.5]} 25... a5 {[%clk
0:02:32.9]} 26. Kh2 {[%clk 0:03:34]} 26... a4 {[%clk 0:02:32]} 27. Rca6 {[%clk
0:03:32.7]} 27... a3 {[%clk 0:02:28.2]} 28. Rxa3 {[%clk 0:03:30.7]} 28... Rxa3
{[%clk 0:02:27]} 29. Rxa3 {[%clk 0:03:30.6]} 29... f6 {[%clk 0:02:22.7]} 30. Kg3
{[%clk 0:03:30.5]} 30... Kf7 {[%clk 0:02:22]} 31. Kf3 {[%clk 0:03:29.4]} 31...
g6 {[%clk 0:02:20.9]} 32. g4 {[%clk 0:03:28.9]} 32... e5 {[%clk 0:02:19.7]} 33.
Kg3 {[%clk 0:03:28.8]} 33... h6 {[%clk 0:02:18.3]} 34. Ra6 {[%clk 0:03:28.7]}
34... Re6 {[%clk 0:02:15.1]} 35. Ra5 {[%clk 0:03:28.6]} 35... f5 {[%clk
0:02:10.5]} 36. gxf5 {[%clk 0:03:27.8]} 36... gxf5 {[%clk 0:02:08.8]} 37. Ra7+
{[%clk 0:03:27.7]} 37... Kg6 {[%clk 0:02:06.9]} 38. Ra5 {[%clk 0:03:27.6]} 38...
e4 {[%clk 0:01:59.5]} 39. Kf4 {[%clk 0:03:26.3]} 39... Rf6 {[%clk 0:01:51.2]}
40. Ra8 {[%clk 0:03:24.1]} 40... Bb5 {[%clk 0:01:43.8]} 41. Ke5 {[%clk
0:03:17.2]} 41... Bf1 {[%clk 0:01:35.1]} 42. h4 {[%clk 0:03:12.8]} 42... Bh3
{[%clk 0:01:31.3]} 43. Rg8+ {[%clk 0:03:08.2]} 43... Kf7 {[%clk 0:01:27]} 44.
Rh8 {[%clk 0:03:03.1]} 44... Rg6 {[%clk 0:01:18]} 45. Rh7+ {[%clk 0:02:55.7]}
45... Kg8 {[%clk 0:01:13.6]} 46. Rb7 {[%clk 0:02:51.2]} 46... Rg7 {[%clk
0:01:01.2]} 47. Rb8+ {[%clk 0:02:48.8]} 47... Kh7 {[%clk 0:00:57.3]} 48. Rb6
{[%clk 0:02:41.7]} 48... Re7+ {[%clk 0:00:53.4]} 49. Kf4 {[%clk 0:02:40.1]}
49... Rg7 {[%clk 0:00:50.8]} 50. Rb8 {[%clk 0:02:33.2]} 50... Rg4+ {[%clk
0:00:49.2]} 51. Ke5 {[%clk 0:02:32.3]} 51... Rxh4 {[%clk 0:00:48.5]} 52. Kf6
{[%clk 0:02:31.6]} 52... f4 {[%clk 0:00:40.9]} 53. Rb7+ {[%clk 0:02:25.7]} 53...
Kg8 {[%clk 0:00:38]} 54. Rb8+ {[%clk 0:02:24.8]} 54... Kh7 {[%clk 0:00:36.4]}
55. Rb7+ {[%clk 0:02:24.3]} 55... Kg8 {[%clk 0:00:35.7]} 56. Rb8+ {[%clk
0:02:23.6]} 56... Kh7 {[%clk 0:00:35.3]} 1/2-1/2

[Event "Live Chess"]
[Site "Chess.com"]
[Date "2023.05.21"]
[Round "-"]
[White "diana21strabt"]
[Black "LiamBellwood"]
[Result "1-0"]
[WhiteElo "1734"]
[BlackElo "1933"]
[TimeControl "300"]
[EndTime "3:21:29 PDT"]
[Termination "diana21strabt won by resignation"]

1. e4 {[%clk 0:04:58.6]} 1... e6 {[%clk 0:04:59.9]} 2. d4 {[%clk 0:04:57.3]}
2... d5 {[%clk 0:04:59.8]} 3. Nc3 {[%clk 0:04:56]} 3... Nf6 {[%clk 0:04:59]} 4.
Bg5 {[%clk 0:04:52.7]} 4... h6 {[%clk 0:04:57.9]} 5. Bxf6 {[%clk 0:04:51.2]}
5... Qxf6 {[%clk 0:04:57.8]} 6. e5 {[%clk 0:04:49.1]} 6... Qd8 {[%clk
0:04:57.1]} 7. Bd3 {[%clk 0:04:45.5]} 7... c5 {[%clk 0:04:57]} 8. dxc5 {[%clk
0:04:43]} 8... Nc6 {[%clk 0:04:56.6]} 9. f4 {[%clk 0:04:41.2]} 9... Bxc5 {[%clk
0:04:56]} 10. Nf3 {[%clk 0:04:39.7]} 10... Qb6 {[%clk 0:04:54.5]} 11. Na4 {[%clk
0:04:37]} 11... Qa5+ {[%clk 0:04:38.5]} 12. c3 {[%clk 0:04:34.2]} 12... Be7
{[%clk 0:04:34.6]} 13. b4 {[%clk 0:04:29.9]} 13... Qc7 {[%clk 0:04:23.2]} 14.
O-O {[%clk 0:04:22.9]} 14... O-O {[%clk 0:04:15.5]} 15. Bc2 {[%clk 0:04:18.5]}
15... b5 {[%clk 0:04:08.5]} 16. Qd3 {[%clk 0:04:13.7]} 16... g6 {[%clk
0:04:02.7]} 17. Nc5 {[%clk 0:04:02]} 17... a6 {[%clk 0:03:47]} 18. a4 {[%clk
0:03:57.3]} 18... Qb6 {[%clk 0:03:39]} 19. a5 {[%clk 0:03:45.8]} 19... Bxc5+
{[%clk 0:03:37.1]} 20. Kh1 {[%clk 0:03:33]} 20... Qa7 {[%clk 0:03:22.4]} 21.
bxc5 {[%clk 0:03:30.3]} 21... Qxc5 {[%clk 0:03:22.3]} 22. Nh4 {[%clk 0:03:25.2]}
22... Qc4 {[%clk 0:03:20.6]} 23. Qg3 {[%clk 0:03:17.3]} 23... Qe2 {[%clk
0:02:45.4]} 24. Rf2 {[%clk 0:03:00.4]} 24... Qh5 {[%clk 0:02:31.1]} 25. Bd1
{[%clk 0:02:52.6]} 1-0

[Event "Live Chess"]
[Site "Chess.com"]
[Date "2023.05.21"]
[Round "-"]
[White "manthanit"]
[Black "NAZRIZ1977"]
[Result "0-1"]
[WhiteElo "1081"]
[BlackElo "1970"]
[TimeControl "300"]
[EndTime "3:21:34 PDT"]
[Termination "NAZRIZ1977 won by checkmate"]

1. e4 {[%clk 0:04:59.4]} 1... c5 {[%clk 0:04:58.9]} 2. g3 {[%clk 0:04:57.9]}
2... Nc6 {[%clk 0:04:57.6]} 3. Bg2 {[%clk 0:04:57.5]} 3... g6 {[%clk 0:04:56.8]}
4. Na3 {[%clk 0:04:50.2]} 4... Bg7 {[%clk 0:04:55]} 5. c3 {[%clk 0:04:49.3]}
5... d6 {[%clk 0:04:53.5]} 6. d4 {[%clk 0:04:48.9]} 6... cxd4 {[%clk 0:04:52.4]}
7. cxd4 {[%clk 0:04:48]} 7... Nxd4 {[%clk 0:04:51.8]} 8. Ne2 {[%clk 0:04:41.5]}
8... Bg4 {[%clk 0:04:49.3]} 9. O-O {[%clk 0:04:38.3]} 9... Nxe2+ {[%clk
0:04:45.6]} 10. Qxe2 {[%clk 0:04:32.3]} 10... Bxe2 {[%clk 0:04:44.5]} 11. Re1
{[%clk 0:04:31.8]} 11... Bg4 {[%clk 0:04:42.1]} 12. Nc4 {[%clk 0:04:24.7]} 12...
Nf6 {[%clk 0:04:40.9]} 13. Nd2 {[%clk 0:04:22.9]} 13... O-O {[%clk 0:04:39.8]}
14. h3 {[%clk 0:04:20.4]} 14... Bd7 {[%clk 0:04:38.4]} 15. e5 {[%clk 0:04:16.9]}
15... dxe5 {[%clk 0:04:37.1]} 16. Rxe5 {[%clk 0:04:15.6]} 16... Rb8 {[%clk
0:04:35]} 17. Re1 {[%clk 0:04:14.7]} 17... e6 {[%clk 0:04:33.8]} 18. Nf3 {[%clk
0:04:12.4]} 18... Bc6 {[%clk 0:04:33]} 19. Bf4 {[%clk 0:04:10.2]} 19... Nh5
{[%clk 0:04:30.8]} 20. Bxb8 {[%clk 0:04:07.4]} 20... Qxb8 {[%clk 0:04:30.7]} 21.
Kh2 {[%clk 0:04:03]} 21... Nxg3 {[%clk 0:04:27.2]} 22. fxg3 {[%clk 0:04:00.4]}
22... h5 {[%clk 0:04:27.1]} 23. Ng5 {[%clk 0:03:46.3]} 23... Bxg2 {[%clk
0:04:27]} 24. Kxg2 {[%clk 0:03:45.1]} 24... Rd8 {[%clk 0:04:23.8]} 25. Rad1
{[%clk 0:03:43.3]} 25... Rxd1 {[%clk 0:04:21.7]} 26. Rxd1 {[%clk 0:03:42.7]}
26... Qc8 {[%clk 0:04:19.3]} 27. Rd2 {[%clk 0:03:38.6]} 27... b5 {[%clk
0:04:17.9]} 28. b3 {[%clk 0:03:36.5]} 28... a5 {[%clk 0:04:16.9]} 29. Ne4 {[%clk
0:03:15.1]} 29... Qc6 {[%clk 0:04:11.7]} 30. Kf3 {[%clk 0:03:13.4]} 30... f5
{[%clk 0:04:10.8]} 31. Ke3 {[%clk 0:03:08.8]} 31... Qxe4+ {[%clk 0:04:10.1]} 32.
Kf2 {[%clk 0:03:07.4]} 32... Bd4+ {[%clk 0:04:10]} 33. Kf1 {[%clk 0:03:06.2]}
33... Qe3 {[%clk 0:04:08.7]} 34. Re2 {[%clk 0:03:04.5]} 34... Qg1# {[%clk
0:04:07.7]} 0-1